bitfinex-derivatives/quotes_ETHF0:USTF0_20251118
["timestamp","ask_amount","ask_price","bid_price","bid_amount"]
[1763484785486,3.722,3152.8,3152.7,0.872]
[1763484786493,3.72449747,3152.8,3152.7,0.87468158]
[1763484787295,3.72449747,3152.8,3152.7,0.00268158]
[1763484787895,0.00249747,3152.8,3152.7,1.38889158]
[1763484788091,0.51669747,3152.8,3152.7,0.87468158]
[1763484788293,0.51669747,3152.8,3152.7,0.00268158]
[1763484788597,3.72449747,3152.8,3152.7,0.87468158]
[1763484789187,3.72449747,3152.8,3152.7,0.00268158]
[1763484789492,3.72449747,3152.8,3152.7,0.87468158]
[1763484789985,0.00249747,3152.8,3152.7,1.38889158]
[1763484790391,0.51669747,3152.8,3152.7,0.87468158]
[1763484792390,0.51669747,3152.8,3152.7,1.38889158]
[1763484792993,0.00475594,3153.1,3153.0,1.93987]
[1763484793494,3.2078,3153.2,3153.0,1.4257]
[1763484793691,3.72193,3153.2,3153.1,0.872]
[1763484793997,0.51415,3153.1,3153.0,0.5537]
[1763484794495,0.5142,3152.8,3152.7,0.00743752]
[1763484794799,3.722,3152.8,3152.7,0.00743752]
[1763484795191,3.722,3152.8,3152.7,0.87943752]
[1763484795687,3.722,3152.8,3152.7,1.39364752]
[1763484796085,3.722,3152.8,3152.7,0.00743752]
[1763484797594,3.722,3152.8,3152.7,0.87943752]
[1763484798490,3.722,3152.8,3152.7,0.00743752]
[1763484799103,3.722,3152.8,3152.7,0.87943752]
[1763484800092,3.722,3152.8,3152.7,0.00743752]
[1763484800798,3.722,3152.8,3152.7,0.87943752]
[1763484801301,3.722,3152.8,3152.7,0.00743752]
[1763484801500,3.722,3152.8,3152.7,1.43594752]
[1763484801701,3.722,3152.8,3152.7,0.92173752]
[1763484801994,3.722,3152.8,3152.7,0.00743752]
[1763484803495,0.51431,3152.1,3152.0,3.7615]
[1763484803698,0.51431,3152.1,3152.0,0.5537]
[1763484804096,0.51431,3152.1,3151.2,3.2078]
[1763484804097,0.51439,3151.6,3151.2,3.2078]
[1763484804302,3.72219,3151.6,3151.3,0.51444]
[1763484804496,3.72219,3151.6,3151.5,1.47050436]
[1763484804702,3.72219,3151.6,3151.5,0.55620436]
[1763484805097,3.72219,3151.6,3151.5,0.00250436]
[1763484805296,3.72219,3151.6,3151.5,0.54590436]
[1763484806203,3.72219,3151.6,3151.5,1.46020436]
[1763484806506,3.72219,3151.6,3151.5,0.54590436]
[1763484808993,3.72219,3151.6,3151.2,0.00475594]
[1763484808994,0.51444,3151.3,3151.2,0.00475594]
[1763484809195,0.51448,3151.1,3151.0,0.5537]
[1763484809399,0.51456,3150.6,3150.5,0.5434]
[1763484809798,0.51456,3150.6,3150.5,1.89296]
[1763484810005,3.2078,3150.7,3150.6,1.34956]
[1763484810311,3.21051339,3150.7,3150.6,1.35366376]
[1763484810505,0.00271339,3150.7,3150.6,7.35366376]
[1763484810700,3.2078,3151.1,3151.0,1.3716]
[1763484811006,3.2078,3151.1,3151.0,1.88609]
[1763484811209,3.2078,3151.5,3151.4,1.34943]
[1763484811702,0.00289707,3151.5,3151.4,1.34943]
[1763484811907,0.51912594,3151.8,3151.7,1.34938]
[1763484812103,0.00475594,3151.8,3151.7,1.34938]
[1763484812294,3.2078,3151.9,3151.7,1.34938]
[1763484812295,3.2078,3152.4,3152.3,0.51428]
[1763484812499,3.2078,3152.4,3152.3,0.835]
[1763484812706,3.2078,3152.4,3152.3,1.34928]
[1763484812907,3.21111489,3152.4,3152.3,1.34928]
[1763484813106,3.72537489,3152.4,3152.3,0.835]
[1763484814910,3.21111489,3152.4,3152.0,0.00475594]
[1763484815210,0.51433,3152.1,3152.0,1.3716]
[1763484817018,0.51433,3152.1,3152.0,0.5366]
[1763484817310,0.51431,3152.1,3152.0,0.5366]
[1763484817813,0.51436,3151.8,3151.7,0.00475594]
[1763484818005,0.51448,3151.1,3151.0,0.5366]
[1763484818212,0.51448,3151.1,3150.6,0.00410376]
[1763484818213,0.51454,3150.7,3150.6,0.00410376]
[1763484818610,3.72234,3150.7,3150.6,0.00410376]
[1763484820120,3.72234,3150.7,3150.6,0.83910376]
[1763484820414,3.2078,3150.7,3150.0,4.04564925]
[1763484820717,3.2078,3150.1,3149.5,1.6536406]
[1763484820916,3.2078,3149.7,3149.5,0.5366]
[1763484821307,3.72251,3149.7,3149.5,0.5366]
[1763484821509,3.72571092,3149.7,3149.5,0.53989671]
[1763484823618,3.72571092,3149.7,3149.5,1.05462671]
[1763484824116,3.21100092,3149.7,3149.6,0.835]
[1763484825915,3.21100092,3149.7,3149.6,1.34972]
[1763484826215,0.51472,3149.6,3149.5,0.53989671]
[1763484826821,6.0,3149.6,3148.8,0.5366]
[1763484827019,3.2078,3149.2,3148.8,1.05145]
[1763484827212,0.51484,3148.9,3148.8,0.5366]
[1763484827716,3.2078,3149.2,3148.8,0.539567]
[1763484828017,0.51484,3148.9,3148.8,0.539567]
[1763484828723,3.2078,3149.2,3148.9,0.51483]
[1763484829222,0.5148,3149.1,3148.9,0.51483]
[1763484829521,3.2078,3149.2,3149.0,0.51482]
[1763484830019,3.2078,3149.2,3148.8,0.539567]
[1763484830319,3.2078,3149.2,3149.1,1.3498]
[1763484830511,3.72259,3149.2,3149.1,1.3498]
[1763484830711,3.72259,3149.2,3149.1,0.835]
[1763484831019,3.2078,3149.2,3149.0,0.835]
[1763484831226,3.2078,3149.2,3149.1,0.835]
[1763484831520,3.2078,3149.2,3148.8,1.054407]
[1763484831820,0.51484,3148.9,3148.8,0.539567]
[1763484833021,3.2078,3149.2,3149.0,0.51481]
[1763484833418,0.51484,3148.9,3148.8,0.539567]
[1763484833623,0.51484,3148.9,3148.8,1.054417]
[1763484834020,0.51484,3148.9,3148.8,0.539567]
[1763484834222,0.51484,3148.9,3148.8,1.054417]
[1763484834617,3.2078,3149.2,3148.8,0.539567]
[1763484834820,0.00475594,3149.3,3149.2,1.34979]
[1763484836626,0.51952594,3149.3,3149.2,0.835]
[1763484836925,0.00475594,3149.3,3149.2,1.34979]
[1763484837128,0.51952594,3149.3,3149.2,0.835]
[1763484837323,0.00475594,3149.3,3149.2,1.34979]
[1763484840431,0.00320092,3149.7,3149.6,1.36032]
[1763484840636,0.00320092,3149.7,3149.6,0.8456]
[1763484840827,0.00320092,3149.7,3149.6,0.51472]
[1763484841133,0.00320092,3149.7,3149.6,1.36032]
[1763484841533,0.51790092,3149.7,3149.6,1.36032]
[1763484841734,0.00320092,3149.7,3149.6,1.36032]
[1763484842432,0.51790092,3149.7,3149.6,0.8456]
[1763484842626,0.51474,3149.6,3149.5,0.51474]
[1763484843036,0.51474,3149.5,3149.4,0.5048]
[1763484845528,0.51484,3148.9,3148.8,0.539567]
[1763484845725,3.2078,3148.9,3148.4,1.1170406]
[1763484845935,4.61920092,3149.7,3148.2,0.41478981]
[1763484845936,0.51493,3148.3,3148.2,0.41478981]
[1763484846141,3.72268,3148.6,3148.5,1.3504]
[1763484846339,3.72268,3148.6,3148.5,0.5048]
[1763484846537,0.51497,3148.1,3148.0,0.5048]
[1763484846741,3.72277,3148.1,3148.0,0.5048]
[1763484846940,3.72277,3148.1,3148.0,0.50892433]
[1763484847433,3.72277,3148.1,3148.0,1.86950433]
[1763484847640,3.72277,3148.1,3148.0,0.50892433]
[1763484848841,3.72277,3148.1,3148.0,1.86950433]
[1763484849536,3.72277,3148.1,3148.0,1.35452433]
[1763484849741,3.72277,3148.1,3148.0,1.86950433]
[1763484849943,3.2078,3148.1,3148.0,1.86950433]
[1763484850536,3.72277,3148.1,3148.0,1.86950433]
[1763484851236,0.00476364,3148.4,3148.3,1.36053]
[1763484851632,0.00476364,3148.4,3148.0,1.02390433]
[1763484851837,0.00476364,3148.4,3148.0,1.02389433]
[1763484851838,0.51497,3148.1,3148.0,1.02389433]
[1763484852036,0.00476364,3148.4,3148.3,0.51493]
[1763484852336,0.00476364,3148.4,3148.3,1.36053]
[1763484852644,0.78086092,3149.7,3149.5,0.5048]
[1763484852942,0.51472,3149.6,3149.5,0.5048]
[1763484854147,0.51477,3149.3,3149.2,0.00476364]
[1763484854341,3.72257,3149.3,3149.2,0.00476364]
[1763484854646,0.51488,3148.6,3148.5,0.5048]
[1763484854944,3.72268,3148.6,3148.5,1.3504]
[1763484855254,3.72268,3148.6,3148.5,0.5048]
[1763484855445,0.51497,3148.1,3148.0,0.50892433]
[1763484855746,0.51497,3148.1,3148.0,1.35452433]
[1763484855944,3.72277,3148.1,3148.0,0.50892433]
[1763484856942,3.2078,3148.1,3148.0,1.35452433]
[1763484857244,3.72277,3148.1,3148.0,1.86950433]
[1763484857448,3.2078,3148.1,3148.0,1.86950433]
[1763484857749,3.2078,3148.1,3148.0,1.02390433]
[1763484857953,3.2078,3148.1,3148.0,1.86950433]
[1763484858644,3.72277,3148.1,3148.0,1.35452433]
[1763484858837,3.72277,3148.1,3148.0,0.50892433]
[1763484859839,3.2078,3148.1,3148.0,1.86950433]
[1763484860463,3.72277,3148.1,3148.0,1.86950433]
[1763484860944,3.72277,3148.1,3148.0,1.35452433]
[1763484861146,3.72277,3148.1,3148.0,1.86950433]
[1763484861346,3.72277,3148.1,3148.0,0.50892433]
[1763484862740,3.2078,3148.1,3148.0,0.50892433]
[1763484862947,3.72277,3148.1,3148.0,0.50892433]
[1763484864452,0.51505,3147.6,3147.5,0.4598]
[1763484864644,3.72285,3147.6,3147.5,0.4598]
[1763484865455,3.72285,3147.6,3147.5,0.46379863]
[1763484865854,3.2078,3147.6,3147.0,0.5248]
[1763484866151,3.72285,3147.6,3147.5,0.4598]
[1763484866357,3.72285,3147.6,3147.5,1.77506]
[1763484866757,0.51976364,3147.9,3147.8,0.8002]
[1763484866957,0.51976364,3147.9,3147.8,0.80395698]
[1763484867259,0.51976364,3147.9,3147.8,0.00375698]
[1763484872660,0.51976364,3147.9,3147.8,1.33697698]
[1763484873048,0.51976364,3147.9,3147.8,0.51877698]
[1763484873360,0.51976364,3147.9,3147.8,1.33697698]
[1763484873558,0.00476364,3147.9,3147.8,1.33697698]
[1763484874458,0.51976364,3147.9,3147.8,1.33697698]
[1763484874658,0.51976364,3147.9,3147.8,0.82195698]
[1763484875053,0.51976364,3147.9,3147.8,0.00375698]
[1763484877356,0.51976364,3147.9,3147.8,0.82195698]
[1763484877557,0.51976364,3147.9,3147.8,0.00375698]
[1763484880171,0.51976364,3147.9,3147.8,0.82195698]
[1763484880670,0.51976364,3147.9,3147.8,1.66466746]
[1763484880874,1.70059542,3149.5,3147.8,1.66466746]
[1763484880875,3.72268,3148.6,3148.5,1.2711]
[1763484881064,3.72268,3148.6,3148.5,0.4529]
[1763484882668,3.72268,3148.6,3148.5,1.786]
[1763484882872,3.72268,3148.6,3148.5,1.2711]
[1763484884468,3.72268,3148.6,3148.5,0.4529]
[1763484887779,3.72268,3148.6,3148.5,1.2711]
[1763484887972,0.51492,3148.4,3148.3,0.84191367]
[1763484889475,0.51493,3148.3,3148.2,0.84667731]
[1763484889882,0.00476364,3148.9,3148.8,1.33305]
[1763484890274,0.51484,3148.9,3148.8,0.8182]
[1763484890574,0.51483,3149.0,3148.8,1.35772696]
[1763484890775,3.2078,3149.6,3149.5,0.4529]
[1763484890976,3.72252,3149.6,3149.5,0.4529]
[1763484892681,3.2078,3149.6,3149.5,0.4529]
[1763484892890,0.00476364,3149.9,3149.6,1.33292]
[1763484893077,0.00476364,3149.9,3149.6,2.45384037]
[1763484893384,3.72241,3150.3,3150.2,0.8182]
[1763484893677,3.72241,3150.3,3150.0,0.4529]
[1763484893678,0.51464,3150.1,3150.0,1.2711]
[1763484893883,3.2078,3150.3,3150.2,1.33282]
[1763484894086,3.72236,3150.7,3150.5,0.4529]
[1763484894281,3.21183595,3150.7,3150.6,0.8182]
[1763484894486,0.00403595,3150.7,3150.6,4.026]
[1763484894679,0.00403595,3150.7,3150.6,4.86563559]
[1763484894982,0.00476364,3150.9,3150.8,0.8182]
[1763484896082,0.00841897,3150.9,3150.8,0.8182]
[1763484896283,3.76159542,3153.0,3150.8,0.8182]
[1763484896284,0.51433,3152.0,3151.8,0.4529]
[1763484896878,0.51443,3151.4,3151.2,0.4529]
[1763484897276,0.51681462,3151.4,3151.2,0.4529]
[1763484898392,0.51448,3151.1,3151.0,0.00476364]
[1763484898587,3.72228,3151.1,3151.0,0.00476364]
[1763484900684,3.72228,3151.1,3151.0,0.71476364]
[1763484900685,0.51448,3151.1,3151.0,0.71476364]
[1763484901282,0.00476364,3151.6,3151.5,0.71]
[1763484901283,0.51915364,3151.6,3151.5,0.71]
[1763484902189,0.00476364,3151.6,3151.5,1.1448]
[1763484902388,3.2078,3152.1,3152.0,1.1448]
[1763484902688,3.72618396,3152.1,3152.0,1.1448]
[1763484903593,0.00407396,3152.1,3152.0,4.3526]
[1763484903891,0.51429,3152.3,3152.2,0.71]
[1763484904491,0.51431,3152.1,3152.0,0.4348]
[1763484904885,0.51820193,3152.1,3152.0,0.4348]
[1763484905081,0.51820193,3152.1,3152.0,1.1448]
[1763484906680,0.51820193,3152.1,3152.0,0.4348]
[1763484907494,0.51820193,3152.1,3152.0,1.1448]
[1763484907995,0.51902364,3152.4,3152.3,0.71]
[1763484908595,0.51415,3153.1,3153.0,1.1448]
[1763484908997,0.51682142,3153.1,3153.0,1.14825572]
[1763484909191,0.54865,3153.7,3153.6,1.1448]
[1763484909389,3.2078,3154.0,3153.6,1.1448]
[1763484909695,0.51404,3153.8,3153.7,0.71]
[1763484910295,0.51787881,3153.8,3153.7,0.71]
[1763484910896,3.21095781,3154.0,3153.7,0.71]
[1763484910897,0.00315781,3154.0,3153.8,0.51404]
[1763484911085,0.51392,3154.5,3154.4,0.71]
[1763484911396,0.5139,3154.7,3154.6,0.71]
[1763484911900,0.51676314,3154.7,3154.6,0.71]
[1763484912790,0.51395,3154.3,3154.2,1.1448]
[1763484912985,3.72175,3154.3,3154.2,1.1448]
[1763484913192,3.72175,3154.3,3154.2,0.4348]
[1763484913392,3.72175,3154.3,3154.2,1.1448]
[1763484913595,3.21066314,3154.7,3154.4,0.71]
[1763484913901,3.21066314,3154.7,3154.5,0.71]
[1763484914203,3.72455314,3154.7,3154.6,0.71]
[1763484914590,3.21066314,3154.7,3154.2,0.4348]
[1763484914792,0.51392,3154.5,3154.3,0.51395]
[1763484915001,0.51392,3154.5,3154.4,0.71]
[1763484915296,3.21066314,3154.7,3154.2,0.4348]
[1763484915297,3.21066314,3154.7,3154.6,0.71]
[1763484915693,0.51395,3154.3,3154.2,1.1448]
[1763484916902,3.21066314,3154.7,3154.4,0.71]
[1763484916903,0.51393,3154.5,3154.4,0.71]
[1763484917301,3.21066314,3154.7,3154.6,0.71]
[1763484917700,0.51675314,3154.7,3154.6,0.71]
[1763484917898,0.00286314,3154.7,3154.6,1.22391]
[1763484918403,10.288,3156.8,3154.4,3.2078]
[1763484918404,3.2078,3156.0,3155.1,1.22382]
[1763484918711,3.2078,3155.3,3155.2,0.71475601]
[1763484918891,3.2078,3155.3,3155.2,0.00475601]
[1763484919088,3.72159,3155.3,3155.2,0.71475601]
[1763484919500,3.72440093,3155.3,3155.2,0.71475601]
[1763484919903,0.51660093,3155.3,3155.2,0.71475601]
[1763484920700,3.72440093,3155.3,3155.2,0.71475601]
[1763484921096,3.72440093,3155.3,3155.2,0.00475601]
[1763484921603,0.51386,3154.9,3154.8,0.4348]
[1763484921806,0.51395,3154.3,3154.2,0.4348]
[1763484922110,3.72175,3154.3,3154.2,0.4348]
[1763484922600,3.72175,3154.3,3153.6,0.4348]
[1763484922601,0.51405,3153.7,3153.6,0.4348]
[1763484923200,0.5141,3153.4,3153.3,0.00475601]
[1763484923397,3.7219,3153.4,3153.3,0.00475601]
[1763484923604,3.7195,3153.4,3153.3,0.72915601]
[1763484924104,0.00473058,3154.0,3153.8,0.7244]
[1763484924295,0.51394,3154.4,3154.3,0.7244]
[1763484924494,0.51394,3154.4,3154.2,0.4109]
[1763484925300,0.51405,3153.7,3153.6,0.4109]
[1763484925494,3.72185,3153.7,3153.6,0.4109]
[1763484925695,0.5141,3153.4,3153.3,0.00475601]
[1763484927402,0.51415,3153.1,3153.0,0.43825572]
[1763484927700,3.72195,3153.1,3153.0,0.43825572]
[1763484930428,3.72195,3153.1,3153.0,1.12905572]
[1763484930996,3.72195,3153.1,3153.0,0.43825572]
[1763484931393,3.72195,3153.1,3153.0,1.12905572]
[1763484931905,3.72195,3153.1,3153.0,0.43825572]
[1763484932308,3.72195,3153.1,3153.0,1.12905572]
[1763484932605,3.72195,3153.1,3153.0,0.43825572]
[1763484932997,3.72195,3153.1,3153.0,1.12905572]
[1763484933199,3.72195,3153.1,3153.0,1.64322572]
[1763484933395,3.72195,3153.1,3153.0,1.12905572]
[1763484933609,0.51415,3153.1,3153.0,1.64322572]
[1763484933997,0.51415,3153.1,3153.0,1.12905572]
[1763484933998,3.72195,3153.1,3153.0,1.12905572]
[1763484934397,3.2078,3153.1,3153.0,1.64322572]
[1763484934804,0.51885601,3153.4,3153.3,1.20492]
[1763484935207,0.51885601,3153.4,3153.3,0.6908]
[1763484937111,0.51415,3153.1,3153.0,1.64322572]
[1763484937310,0.51415,3153.1,3153.0,1.12905572]
[1763484937711,0.51415,3153.1,3153.0,0.43825572]
[1763484938104,3.72195,3153.1,3153.0,0.43825572]
[1763484939114,3.72195,3153.1,3153.0,1.12905572]
[1763484939609,0.51885601,3153.4,3153.3,0.6908]
[1763484941907,0.51415,3153.1,3153.0,1.64322572]
[1763484942111,0.51415,3153.1,3153.0,1.12905572]
[1763484942510,0.51415,3153.1,3153.0,0.00345572]
[1763484942711,0.51415,3153.1,3152.7,0.69555601]
[1763484942712,0.5142,3152.8,3152.7,0.69555601]
[1763484943305,3.2078,3153.1,3152.8,0.5142]
[1763484943610,3.72195,3153.1,3153.0,1.0778]
[1763484943815,3.72556849,3153.1,3153.0,1.0778]
[1763484944309,3.72556849,3153.1,3153.0,1.59197]
[1763484944614,3.72556849,3153.1,3153.0,1.0778]
[1763484945612,0.00361849,3153.1,3153.0,1.59197]
[1763484946215,0.51776849,3153.1,3153.0,1.0778]
[1763484946413,3.72556849,3153.1,3153.0,0.387]
[1763484947518,3.21141849,3153.1,3153.0,1.59197]
[1763484947716,3.72556849,3153.1,3153.0,0.387]
[1763484948723,0.51418,3152.9,3152.8,0.00365241]
[1763484948918,3.21141849,3153.1,3152.4,0.4109]
[1763484948919,0.51425,3152.5,3152.4,0.4109]
[1763484949120,3.2078,3152.5,3152.1,3.2078]
[1763484949420,0.5143,3152.2,3152.1,3.72211]
[1763484949724,0.51428,3152.4,3152.3,0.51427]
[1763484949922,0.51428,3152.4,3152.3,1.20507]
[1763484950119,3.72205,3152.5,3152.4,1.20506]
[1763484950317,3.2078,3152.5,3152.4,1.20506]
[1763484950921,3.2078,3152.9,3152.5,0.387]
[1763484951222,0.00361849,3153.1,3152.5,0.387]
[1763484951223,0.51776849,3153.1,3153.0,1.59197]
[1763484951422,0.00361849,3153.1,3153.0,1.59197]
[1763484951822,3.2078,3153.7,3153.0,1.59197]
[1763484951823,3.2078,3153.7,3153.5,0.387]
[1763484952122,0.51407,3153.6,3153.5,1.58948]
[1763484952323,0.51407,3153.6,3153.5,1.0754]
[1763484952819,0.51728585,3153.6,3153.5,0.3846]
[1763484955922,0.51728585,3153.6,3153.5,0.89868]
[1763484956123,0.51728585,3153.6,3153.5,0.3846]
[1763484956320,0.51728585,3153.6,3153.5,0.89868]
[1763484956526,0.51728585,3153.6,3153.5,1.58948]
[1763484956833,0.51728585,3153.6,3153.5,1.0754]
[1763484957725,0.51728585,3153.6,3153.5,0.3846]
[1763484959328,0.51412,3153.3,3153.2,0.83805364]
[1763484959528,0.51412,3153.3,3153.0,1.49582037]
[1763484959529,0.51415,3153.1,3153.0,0.9919]
[1763484959924,0.51415,3153.1,3153.0,0.3749]
[1763484960336,3.2078,3153.3,3152.6,0.83805364]
[1763484960630,0.51415,3153.1,3153.0,0.3749]
[1763484960823,0.51423,3152.6,3152.5,0.387]
[1763484961028,0.51423,3152.6,3152.5,1.004]
[1763484961628,3.72203,3152.6,3152.5,0.387]
[1763484962032,0.51426,3152.4,3152.3,0.0039791]
[1763484962431,0.51431,3152.1,3152.0,0.39175601]
[1763484962628,3.72211,3152.1,3152.0,0.39175601]
[1763484963030,0.51439,3151.6,3151.5,0.3749]
[1763484963430,0.51439,3151.6,3151.5,0.37869383]
[1763484965340,0.51439,3151.6,3151.5,0.99569383]
[1763484965539,3.2078,3152.6,3152.5,0.3749]
[1763484965839,3.72203,3152.6,3152.5,0.3749]
[1763484966230,0.51431,3152.1,3152.0,0.3749]
[1763484966441,3.72203,3152.6,3152.5,0.617]
[1763484966832,0.51425,3152.5,3152.4,0.3749]
[1763484967530,3.2078,3152.6,3152.5,1.13125]
[1763484967736,3.72203,3152.6,3152.5,1.13125]
[1763484967946,3.2078,3152.6,3152.5,1.13125]
[1763484968150,3.2078,3152.6,3152.4,0.3749]
[1763484968151,0.51425,3152.5,3152.4,0.3749]
[1763484968552,3.72203,3152.6,3152.5,0.617]
[1763484968949,3.2078,3152.6,3152.5,1.13125]
[1763484969150,3.72203,3152.6,3152.5,0.617]
[1763484970343,3.2078,3152.6,3152.5,0.617]
[1763484970555,3.72203,3152.6,3152.5,1.13125]
[1763484971351,3.2078,3152.6,3152.5,1.13125]
[1763484971747,3.72203,3152.6,3152.5,0.617]
[1763484971944,3.72203,3152.6,3152.4,0.3749]
[1763484971945,0.51425,3152.5,3152.4,0.3749]
[1763484972747,9.172,3152.5,3151.5,1.4996142]
[1763484973057,3.72219,3151.6,3151.5,0.37869383]
[1763484973552,0.51444,3151.3,3151.2,0.00475601]
[1763484973759,0.51444,3151.3,3151.2,0.51921601]
[1763484974054,0.51444,3151.3,3151.2,0.00475601]
[1763484974456,3.2078,3151.6,3151.3,1.13144]
[1763484974752,3.21034585,3151.6,3151.3,1.13554269]
[1763484975255,3.72474585,3151.6,3151.5,1.13141]
[1763484975443,3.21034585,3151.6,3151.5,1.13141]
[1763484976260,3.72473585,3151.6,3151.5,1.13141]
[1763484976553,3.21034585,3151.6,3151.3,0.00410269]
[1763484976754,0.51441,3151.5,3151.4,0.51443]
[1763484976954,3.21034585,3151.6,3151.5,1.13141]
[1763484977350,3.21034585,3151.6,3151.5,0.617]
[1763484977552,3.72473585,3151.6,3151.5,1.13141]
[1763484977750,3.72473585,3151.6,3151.5,0.617]
[1763484977950,3.21034585,3151.6,3151.5,1.13141]
[1763484978548,3.21034585,3151.6,3151.3,0.51853269]
[1763484978549,0.51443,3151.4,3151.3,0.51853269]
[1763484978752,0.51443,3151.4,3151.3,1.13553269]
[1763484979257,0.51441,3151.5,3151.4,0.617]
[1763484979561,3.72473585,3151.6,3151.5,0.617]
[1763484979761,3.21034585,3151.6,3151.5,1.13141]
[1763484979962,3.72473585,3151.6,3151.5,1.13141]
[1763484980460,3.72233585,3151.6,3151.5,1.13141]
[1763484980763,0.51443,3151.4,3151.3,0.00410269]
[1763484981162,0.51443,3151.4,3151.3,0.51854269]
[1763484981463,0.51443,3151.4,3151.3,0.00410269]
[1763484981756,3.20794585,3151.6,3151.5,0.6171]
[1763484981949,0.00475601,3152.9,3152.0,1.13142]
[1763484981950,0.51433,3152.1,3152.0,1.13142]
[1763484982362,0.51433,3152.1,3152.0,0.6171]
[1763484982665,0.51433,3152.0,3151.9,0.51433]
[1763484982866,0.51797757,3152.0,3151.9,1.13143]
[1763484983049,0.51435,3151.9,3151.8,0.3471]
[1763484983969,0.51435,3151.9,3151.8,0.86146]
[1763484984169,0.51798757,3152.0,3151.9,0.6171]
[1763484984360,0.51435,3151.9,3151.8,0.3471]
[1763484985965,0.51443,3151.4,3151.3,0.00410269]
[1763484986158,0.51441,3151.5,3151.4,0.51441]
[1763484986354,3.2078,3151.6,3151.5,0.51441]
[1763484986571,0.51436,3151.9,3151.8,0.3471]
[1763484986763,0.51436,3151.9,3151.8,0.86146]
[1763484986969,3.21144757,3152.0,3151.8,0.86145]
[1763484987270,0.51435,3151.9,3151.8,0.86145]
[1763484987569,3.21144757,3152.0,3151.9,1.13145]
[1763484987769,3.21144757,3152.0,3151.9,4.33925]
[1763484987770,0.00364757,3152.0,3151.9,4.33925]
[1763484987970,0.51797757,3152.0,3151.9,1.13145]
[1763484988166,0.00364757,3152.0,3151.9,1.13145]
[1763484988567,0.51797757,3152.0,3151.9,1.13145]
[1763484988867,0.00364757,3152.0,3151.9,1.13145]
[1763484990464,0.51797757,3152.0,3151.9,0.6171]
[1763484991366,0.00364757,3152.0,3151.9,1.13145]
[1763484991961,0.51797757,3152.0,3151.9,0.6171]
[1763484992269,0.51797757,3152.0,3151.9,1.13145]
[1763484992766,0.51797757,3152.0,3151.9,0.6171]
[1763484993771,0.00364757,3152.0,3151.9,1.13145]
[1763484994271,0.51797757,3152.0,3151.9,1.13145]
[1763484994471,0.00364757,3152.0,3151.9,1.13145]
[1763484994768,3.2078,3152.5,3152.4,1.08786]
[1763484994973,3.72205,3152.5,3152.4,1.08786]
[1763484995362,0.51428,3152.3,3152.2,0.51428]
[1763484995563,0.51428,3152.3,3152.0,1.12092037]
[1763484995868,0.00384848,3152.3,3152.2,1.0879]
[1763484996366,0.00384848,3152.3,3151.9,1.12092037]
[1763484996668,0.51431,3152.2,3152.1,1.0879]
[1763484997069,0.00384848,3152.3,3152.2,1.0879]
[1763484998762,0.51812848,3152.3,3152.2,0.5736]
[1763484998962,0.51812848,3152.3,3152.2,0.5143]
[1763484999173,0.00384848,3152.3,3152.2,1.0879]
[1763484999575,0.51812848,3152.3,3152.2,1.0879]
[1763484999972,0.00384848,3152.3,3152.2,1.0879]
[1763485000172,0.51812848,3152.3,3152.2,1.0879]
[1763485000469,0.00384848,3152.3,3152.2,1.0879]
[1763485000670,0.51812848,3152.3,3152.2,1.0879]
[1763485001677,0.51812848,3152.3,3152.2,0.5143]
[1763485001874,0.5143,3152.2,3152.1,0.5736]
[1763485002173,0.51812848,3152.3,3152.2,0.5143]
[1763485002372,0.00384848,3152.3,3151.8,0.3471]
[1763485002568,0.00384848,3152.3,3151.3,0.00410269]
[1763485002569,0.51443,3151.4,3151.3,0.00410269]
[1763485002767,3.72223,3151.4,3151.3,0.00410269]
[1763485003270,0.51444,3151.3,3150.7,0.46681]
[1763485003470,0.51452,3150.8,3150.7,0.46681]
[1763485003665,3.72232,3150.8,3150.7,0.46681]
[1763485004276,3.72232,3150.8,3150.7,0.98501711]
[1763485004469,3.72232,3150.8,3150.7,0.47047711]
[1763485004975,0.51457,3150.5,3150.4,0.51934601]
[1763485005172,0.51457,3150.5,3150.4,0.00475601]
[1763485005376,3.2078,3150.8,3150.4,0.00475601]
[1763485005377,0.51454,3150.7,3150.6,0.3439]
[1763485005572,0.51454,3150.7,3150.6,0.85846]
[1763485005771,0.51454,3150.7,3150.6,0.92065816]
[1763485005977,3.2078,3150.8,3150.7,0.5736]
[1763485006179,3.72233,3150.8,3150.7,0.5736]
[1763485007277,3.72233,3150.8,3150.7,1.08814]
[1763485007278,3.2078,3150.8,3150.7,1.08814]
[1763485007471,3.72232,3150.8,3150.7,1.08814]
[1763485007671,0.51454,3150.7,3150.6,0.34705816]
[1763485007974,0.51454,3150.7,3150.6,0.92065816]
[1763485009372,0.51454,3150.7,3150.6,0.34705816]
[1763485012768,0.51454,3150.7,3150.6,0.00315816]
[1763485014085,0.51454,3150.7,3150.6,0.57675816]
[1763485014287,3.2078,3150.8,3150.7,1.08814]
[1763485014888,0.00475601,3151.1,3151.0,1.43199]
[1763485015075,0.51436,3151.8,3151.7,0.5736]
[1763485015280,0.51439,3151.6,3151.5,1.43191]
[1763485015482,0.51438,3151.7,3151.6,0.51439]
[1763485015881,3.2078,3151.8,3151.7,1.08798]
[1763485016389,0.51436,3151.9,3151.8,1.08796]
[1763485016589,0.51907601,3152.1,3152.0,0.3439]
[1763485016983,0.00475601,3152.1,3152.0,0.3439]
[1763485017284,0.51906601,3152.1,3152.0,0.3439]
[1763485018284,3.21164848,3152.3,3152.2,1.083]
[1763485018483,0.00384848,3152.3,3152.2,1.083]
[1763485019883,0.51812848,3152.3,3152.2,1.083]
[1763485020079,0.00384848,3152.3,3152.2,1.083]
[1763485020681,0.00384848,3152.3,3152.2,0.5687]
[1763485020890,0.00384848,3152.3,3152.2,1.083]
[1763485021289,0.00384848,3152.3,3152.2,0.5687]
[1763485021497,0.51812848,3152.3,3152.2,1.083]